fUST/lending_fUST_20250308
["ID","MTS","AMOUNT","RATE_DAILY","PERIOD"]
[355614714,1741385241023,-100000.0,0.000483,120]
[355614715,1741385241048,-500.0,0.00048333,91]
[355614716,1741385241073,-502.67947844,0.00048373,10]
[355614717,1741385241098,-500.0,0.00048373,10]
[355614718,1741385241124,-551.61881805,0.00048373,10]
[355614719,1741385241155,-500.0,0.00048373,10]
[355614720,1741385241180,-500.0,0.00048373,10]
[355614721,1741385241204,-151.47961643,0.00048373,10]
[355614722,1741385241232,-500.0,0.00048373,10]
[355614723,1741385241257,-500.0,0.00048373,10]
[355614724,1741385241279,-500.0,0.00048373,10]
[355614725,1741385241301,-500.0,0.00048373,10]
[355614726,1741385241322,-500.0,0.00048373,10]
[355614727,1741385241345,-500.0,0.00048393,120]
[355614728,1741385241368,-44954.68850316,0.00048398,120]
[355614729,1741385241391,-500.0,0.00048433,92]
[355614730,1741385241415,-200.9193797,0.00048448,2]
[355614731,1741385241439,-150.0,0.000485,120]
[355614732,1741385241464,-516.05394046,0.0004851,60]
[355614733,1741385241487,-33333.29,0.00048524,7]
[355614734,1741385241509,-699.97,0.00048524,120]
[355614735,1741385241534,-500.0,0.00048533,99]
[355614736,1741385241558,-802.34238308,0.00048589,120]
[355614737,1741385241582,-2089.88436476,0.0004859,120]
[355614738,1741385241606,-6649.63206972,0.0004859,120]
[355614739,1741385241631,-968.00020737,0.00048591,120]
[355614740,1741385241654,-2469.86334019,0.00048593,120]
[355614741,1741385241679,-1234.9316701,0.00048594,120]
[355614742,1741385241702,-1234.9316701,0.00048595,120]
[355614743,1741385241727,-1600.48,0.000486,30]
[355614744,1741385241751,-200.0,0.00048618,120]
[355614745,1741385241774,-200.0,0.0004862,120]
[355614746,1741385241795,-5000.0,0.00048632,7]
[355614747,1741385241818,-500.0,0.00048633,97]
[355614748,1741385241841,-999.0,0.00048637,120]
[355614749,1741385241864,-500.0,0.00048733,92]
[355614750,1741385241885,-500.0,0.00048767,120]
[355614751,1741385241909,-33333.29,0.00048798,7]
[355614752,1741385241931,-151.0,0.00048798,120]
[355614753,1741385241953,-699.97,0.00048798,120]
[355614754,1741385241976,-500.0,0.00048833,98]
[355614755,1741385242000,-200.0,0.00048846,120]
[355614756,1741385242166,-200.0,0.00048853,120]
[355614757,1741385242194,-200.0,0.00048875,120]
[355614758,1741385242218,-200.0,0.00048913,120]
[355614759,1741385242240,-500.0,0.00048933,94]
[355614760,1741385242260,-500.0,0.00048941,120]
[355614761,1741385242281,-200.0,0.00048968,120]
[355614762,1741385242303,-500.0,0.00048973,10]
[355614763,1741385242323,-3287.49168145,0.0004899,7]
[355614764,1741385242345,-153.764897,0.0004899,120]
[355614765,1741385242366,-151.0,0.0004899,120]
[355614766,1741385242386,-156.624976,0.0004899,120]
[355614767,1741385242408,-151.0,0.0004899,120]
[355614768,1741385242428,-423.3448319,0.00048991,14]
[355614769,1741385242450,-2402.19245131,0.00049,120]
[355614770,1741385242472,-465.94664271,0.00049,30]
[355614771,1741385242495,-465.94664271,0.00049,30]
[355614772,1741385242515,-11256.1131991,0.00049,30]
[355614773,1741385242538,-11256.1131991,0.00049,30]
[355614774,1741385242561,-1000.0,0.00049,120]
[355614775,1741385242583,-1000.0,0.00049,120]
[355614776,1741385242605,-538.83557895,0.00049,120]
[355614777,1741385242625,-7652.62748976,0.00049,120]
[355614778,1741385242647,-1139.95779695,0.00049,120]
[355614779,1741385242668,-15000.0,0.00049,120]
[355614780,1741385242691,-2038.74269993,0.00049,120]
[355614781,1741385242714,-151.0,0.00049,120]
[355614782,1741385242735,-151.0,0.00049,120]
[355614783,1741385242756,-151.0,0.00049,120]
[355614784,1741385242776,-151.0,0.00049,120]
[355614785,1741385242797,-500.0,0.00049,2]
[355614786,1741385242818,-150.36,0.00049,120]
[355614787,1741385242839,-150.36,0.00049,120]
[355614788,1741385242859,-150.36,0.00049,120]
[355614789,1741385242880,-595.42973364,0.00049019,14]
[355614790,1741385242900,-150.36,0.00049027,120]
[355614791,1741385242921,-150.36,0.00049027,120]
[355614792,1741385242942,-150.36,0.00049027,120]
[355614793,1741385242963,-500.0,0.00049033,97]
[355614794,1741385242983,-800.0,0.00049041,14]
[355614795,1741385243004,-192.14205512,0.00049055,120]
[355614796,1741385243024,-150.36,0.00049055,120]
[355614797,1741385243045,-185.06677411,0.00049055,120]
[355614798,1741385243065,-800.0,0.00049067,14]
[355614799,1741385243085,-800.0,0.00049072,14]
[355614800,1741385243107,-33333.29,0.00049072,7]
[355614801,1741385243126,-151.0,0.00049072,120]
[355614802,1741385243150,-699.97,0.00049072,120]
[355614803,1741385243170,-297.92,0.00049082,120]
[355614804,1741385243192,-800.0,0.0004909,14]
[355614805,1741385243216,-500.0,0.00049133,91]
[355614806,1741385243236,-800.0,0.00049148,14]
[355614807,1741385243258,-200.0,0.00049158,120]
[355614808,1741385243279,-800.0,0.0004916,14]
[355614809,1741385243299,-800.0,0.00049168,14]
[355614810,1741385243320,-800.0,0.00049169,14]
[355614811,1741385243340,-1283.06683,0.0004918,21]
[355614812,1741385243361,-595.42973364,0.00049183,14]
[355614813,1741385243382,-999.0,0.00049185,120]
[355614814,1741385243402,-240.0,0.000492,120]
[355614815,1741385243421,-1000.0,0.000492,21]
[355614816,1741385243443,-200.0,0.00049202,120]
[355614817,1741385243465,-201.07026636,0.00049203,14]
[355614818,1741385243485,-800.0,0.00049212,14]
[355614819,1741385243505,-155.577273,0.00049215,120]
[355614820,1741385243528,-3000.0,0.00049215,2]
[355614821,1741385243549,-1000.0,0.0004922,21]
[355614822,1741385243570,-800.0,0.00049222,14]
[355614823,1741385243591,-500.0,0.00049233,92]
[355614824,1741385243612,-262.778548,0.00049237,120]
[355614825,1741385243633,-1000.0,0.0004924,21]
[355614826,1741385243653,-151.0,0.00049245,120]
[355614827,1741385243674,-1000.0,0.0004926,21]
[355614828,1741385243694,-1000.0,0.0004928,21]
[355614829,1741385243722,-153.94,0.000493,45]
[355614830,1741385243748,-153.94,0.000493,45]
[355614831,1741385243775,-153.94,0.000493,45]
[355614832,1741385243796,-1000.0,0.000493,21]
[355614833,1741385243817,-500.0,0.00049315,120]
[355614834,1741385243837,-500.0,0.00049315,120]
[355614835,1741385243859,-500.0,0.00049315,120]
[355614836,1741385243880,-500.0,0.00049315,120]
[355614837,1741385243900,-500.0,0.00049315,120]
[355614838,1741385243922,-500.0,0.00049315,120]
[355614839,1741385243943,-500.0,0.00049315,120]
[355614840,1741385243965,-500.0,0.00049315,120]
[355614841,1741385243986,-376.77978971,0.00049315,120]
[355614842,1741385244009,-151.0,0.00049315,120]
[355614843,1741385244031,-151.0,0.00049315,120]
[355614844,1741385244055,-182.39908,0.00049315,120]
[355614845,1741385244077,-151.0,0.00049315,120]
[355614846,1741385244099,-209.041075,0.00049315,120]
[355614847,1741385244120,-151.0,0.00049315,120]
[355614848,1741385244144,-151.0,0.00049315,120]
[355614849,1741385244165,-4441.96,0.00049315,120]
[355614850,1741385244189,-4441.96,0.00049315,120]
[355614851,1741385244210,-4441.96,0.00049315,120]
[355614852,1741385244235,-4441.96,0.00049315,120]
[355614853,1741385244257,-4441.96,0.00049315,120]
[355614854,1741385244279,-4441.96,0.00049315,120]
[355614855,1741385244302,-4441.96,0.00049315,120]
[355614856,1741385244323,-4441.96,0.00049315,120]
[355614857,1741385244345,-4441.96,0.00049315,120]
[355614858,1741385244367,-4441.96,0.00049315,120]
[355614859,1741385244389,-4441.96,0.00049315,120]
[355614860,1741385244411,-4441.96,0.00049315,120]
[355614861,1741385244433,-4441.96,0.00049315,120]
[355614862,1741385244455,-151.0,0.00049315,120]
[355614863,1741385244479,-200.06073036,0.00049315,10]
[355614864,1741385244499,-1000.0,0.0004932,21]
[355614865,1741385244522,-200.0,0.00049326,120]
[355614866,1741385244545,-500.0,0.00049333,91]
[355614867,1741385244569,-200.0,0.00049333,120]
[355614868,1741385244590,-1000.0,0.0004934,21]
[355614869,1741385244612,-33333.29,0.00049346,7]
[355614870,1741385244634,-4441.96,0.00049346,120]
[355614871,1741385244656,-699.97,0.00049346,120]
[355614872,1741385244681,-200.0,0.00049349,120]
[355614873,1741385244703,-2501.50850462,0.0004935,2]
[355614874,1741385244724,-1000.0,0.0004936,21]
[355614875,1741385244745,-150.0,0.00049373,10]
[355614876,1741385244766,-1000.0,0.0004938,21]
[355614877,1741385244786,-1072.177805,0.0004938,21]
[355614878,1741385244807,-595.42973364,0.00049392,30]
[355614879,1741385244827,-2117.75,0.000494,30]
[355614880,1741385244847,-1000.0,0.000494,21]
[355614881,1741385244868,-1000.0,0.000494,21]
[355614882,1741385244888,-9549.84479722,0.000494,2]
[355614883,1741385244909,-151.0,0.000494,120]
[355614884,1741385244930,-150.0,0.000494,120]
[355614885,1741385244952,-500.0,0.00049433,90]
[355614886,1741385244974,-500.0,0.00049489,120]
[355614887,1741385244996,-173.29968,0.00049497,120]
[355614888,1741385245018,-151.0,0.00049497,120]
[355614889,1741385245040,-151.0,0.00049497,120]
[355614890,1741385245066,-1000.0,0.000495,120]
[355614891,1741385245087,-2000.0,0.000495,48]
[355614892,1741385245108,-416.66666667,0.000495,7]
[355614893,1741385245130,-151.0,0.000495,120]
[355614894,1741385245154,-151.0,0.000495,120]
[355614895,1741385245176,-151.0,0.000495,120]
[355614896,1741385245197,-500.0,0.000495,120]
[355614897,1741385245225,-500.0,0.000495,120]
[355614898,1741385245246,-500.0,0.000495,120]
[355614899,1741385245377,-500.0,0.000495,120]
[355614900,1741385245400,-500.0,0.000495,120]
[355614901,1741385245421,-500.0,0.000495,120]
[355614902,1741385245442,-500.0,0.000495,120]
[355614903,1741385245464,-500.0,0.000495,120]
[355614904,1741385245486,-500.0,0.000495,120]
[355614905,1741385245507,-500.0,0.000495,120]
[355614906,1741385245528,-500.0,0.000495,120]
[355614907,1741385245550,-500.0,0.000495,120]
[355614908,1741385245570,-500.0,0.000495,120]
[355614909,1741385245591,-500.0,0.000495,120]
[355614910,1741385245612,-500.0,0.000495,120]
[355614911,1741385245633,-500.0,0.000495,120]
[355614912,1741385245655,-500.0,0.000495,120]
[355614913,1741385245676,-500.0,0.000495,120]
[355614914,1741385245697,-500.0,0.000495,120]
[355614915,1741385245720,-500.0,0.000495,120]
[355614916,1741385245741,-500.0,0.000495,120]
[355614917,1741385245762,-500.0,0.000495,120]
[355614918,1741385245783,-500.0,0.000495,120]
[355614919,1741385245803,-500.0,0.000495,120]
[355614920,1741385245824,-500.0,0.000495,120]
[355614921,1741385245845,-500.0,0.000495,120]
[355614922,1741385245866,-500.0,0.000495,120]
[355614923,1741385245887,-500.0,0.000495,120]
[355614924,1741385245909,-500.0,0.000495,120]
[355614925,1741385245930,-500.0,0.000495,120]
[355614926,1741385245952,-500.0,0.000495,120]
[355614927,1741385245975,-500.0,0.000495,120]
[355614928,1741385245996,-500.0,0.000495,120]
[355614929,1741385246019,-500.0,0.000495,120]
[355614930,1741385246043,-500.0,0.000495,120]
[355614931,1741385246066,-500.0,0.000495,120]
[355614932,1741385246090,-500.0,0.000495,120]
[355614933,1741385246114,-500.0,0.000495,120]
[355614934,1741385246138,-500.0,0.000495,120]
[355614935,1741385246160,-500.0,0.000495,120]
[355614936,1741385246183,-500.0,0.000495,120]
[355614937,1741385246204,-500.0,0.000495,120]
[355614938,1741385246226,-500.0,0.000495,120]
[355614939,1741385246249,-500.0,0.000495,120]
[355614940,1741385246269,-500.0,0.000495,120]
[355614941,1741385246290,-500.0,0.000495,120]
[355614942,1741385246311,-500.0,0.000495,120]
[355614943,1741385246332,-500.0,0.000495,120]
[355614944,1741385246354,-500.0,0.000495,120]
[355614945,1741385246374,-500.0,0.000495,120]
[355614946,1741385246396,-500.0,0.000495,120]
[355614947,1741385246417,-500.0,0.000495,120]
[355614948,1741385246438,-500.0,0.000495,120]
[355614949,1741385246460,-500.0,0.000495,120]
[355614950,1741385246482,-500.0,0.000495,120]
[355614951,1741385246504,-500.0,0.000495,120]
[355614952,1741385246525,-500.0,0.000495,120]
[355614953,1741385246547,-500.0,0.000495,120]
[355614954,1741385246568,-500.0,0.000495,120]
[355614955,1741385246589,-500.0,0.000495,120]
[355614956,1741385246609,-249.48253319,0.000495,120]
[355614957,1741385246631,-151.0,0.000495,120]
[355614958,1741385246652,-2007.0,0.00049505,20]
[355614959,1741385246675,-500.0,0.00049533,92]
[355614960,1741385246696,-20000.0,0.000496,120]
[355614961,1741385246721,-200.0,0.00049602,120]
[355614962,1741385246746,-33333.29,0.0004962,7]
[355614963,1741385246769,-4441.96,0.0004962,120]
[355614964,1741385246793,-699.97,0.0004962,120]
[355614965,1741385246815,-500.0,0.00049633,97]
[355614966,1741385246838,-200.0,0.00049652,120]
[355614967,1741385246863,-200.0,0.00049708,120]
[355614968,1741385246886,-500.0,0.00049733,91]
[355614969,1741385246909,-999.0,0.00049733,120]
[355614970,1741385246930,-160.0,0.00049804,3]
[355614971,1741385246950,-206.20538935,0.00049804,5]
[355614972,1741385246976,-200.0,0.00049805,120]
[355614973,1741385246999,-200.0,0.00049812,120]
[355614974,1741385247020,-500.0,0.00049833,95]
[355614975,1741385247042,-200.0,0.00049855,120]
[355614976,1741385247064,-200.0,0.00049866,120]
[355614977,1741385247085,-2000.0,0.00049882,4]
[355614978,1741385247106,-33333.29,0.00049894,7]
[355614979,1741385247128,-4441.96,0.00049894,120]
[355614980,1741385247152,-699.97,0.00049894,120]
[355614981,1741385247173,-119163.56002056,0.00049901,5]
[355614982,1741385247258,-1008.93434481,0.00047873,28]
[355614983,1741385247278,-154.140623,0.00047973,120]
[355614984,1741385247298,-160.79,0.0004949,10]
[355614985,1741385247325,-89921.95153619,0.00049901,5]
[355615024,1741385432303,-156.58,0.00041863,2]
[355615025,1741385432312,-8884.069079,0.00041873,79]
[355615026,1741385432322,-1097.774977,0.00041873,83]
[355615033,1741385437907,-3902.225023,0.00041873,83]
[355615034,1741385437919,-5000.0,0.00041873,84]
[355615035,1741385437929,-5000.0,0.00041873,78]
[355615036,1741385437940,-5000.0,0.00041873,81]
[355615037,1741385437950,-156.58,0.00045774,2]
[355615038,1741385437961,-156.58,0.00045775,2]
[355615039,1741385437971,-156.58,0.00045775,2]
[355615040,1741385437982,-774.97801901,0.00045784,7]
[355615041,1741385437992,-500.0,0.00045784,120]
[355615042,1741385438001,-550.0,0.00045784,5]
[355615043,1741385438011,-500.0,0.00045785,120]
[355615044,1741385438021,-12521.32,0.00045785,7]
[355615045,1741385438031,-156.58,0.00046048,2]
[355615046,1741385438040,-156.58,0.00046049,2]
[355615047,1741385438049,-500.0,0.00046058,120]
[355615048,1741385438058,-999.0,0.00046058,120]
[355615049,1741385438067,-630.14118,0.00046059,120]
[355615051,1741385438076,-12521.32,0.00046059,7]
[355615052,1741385438086,-387.15,0.00046223,30]
[355615053,1741385438095,-838.19,0.00046223,10]
[355615054,1741385438104,-500.0,0.00046232,2]
[355615055,1741385438114,-500.0,0.00046232,2]
[355615056,1741385438123,-500.0,0.00046232,2]
[355615057,1741385438133,-500.0,0.00046232,2]
[355615058,1741385438148,-500.0,0.00046232,2]
[355615059,1741385438158,-500.0,0.00046232,2]
[355615060,1741385438168,-500.0,0.00046232,2]
[355615061,1741385438178,-500.0,0.00046232,2]
[355615062,1741385438190,-500.0,0.00046232,2]
[355615063,1741385438200,-500.0,0.00046232,2]
[355615064,1741385438211,-500.0,0.00046232,2]
[355615065,1741385438223,-500.0,0.00046232,2]
[355615066,1741385438232,-500.0,0.00046232,2]
[355615067,1741385438242,-500.0,0.00046232,2]
[355615068,1741385438252,-500.0,0.00046232,2]
[355615069,1741385438262,-500.0,0.00046232,2]
[355615070,1741385438271,-500.0,0.00046232,2]
[355615071,1741385438281,-475.64061355,0.00046232,2]
[355615072,1741385438292,-500.0,0.00046232,2]
[355615073,1741385438301,-499.99999999,0.00046232,2]
[355615074,1741385438311,-435.30958131,0.00046232,2]
[355615075,1741385438321,-1000.0,0.00046233,90]
[355615076,1741385438330,-104349.85026016,0.00046233,2]
[355615077,1741385438342,-42971.50000001,0.00046233,2]
[355615083,1741385441073,-74678.64973983,0.00046233,2]
[355615084,1741385441083,-1470.28384334,0.00046233,2]
[355615085,1741385441093,-500.0,0.00046273,10]
[355615086,1741385441102,-503.03356433,0.00046273,10]
[355615087,1741385441111,-500.0,0.00046273,10]
[355615088,1741385441122,-500.0,0.00046273,10]
[355615089,1741385441132,-500.0,0.00046273,2]
[355615090,1741385441150,-500.0,0.00046273,10]
[355615091,1741385441160,-500.0,0.00046332,120]
[355615092,1741385441169,-12521.32,0.00046333,7]
[355615093,1741385441180,-400.0,0.00046575,10]
[355615094,1741385441193,-999.0,0.00046606,120]
[355615095,1741385441203,-12521.32,0.00046607,7]
[355615096,1741385441212,-12521.32,0.00046881,7]
[355615097,1741385441222,-150.0,0.00047099,14]
[355615098,1741385441233,-150.0,0.00047099,14]
[355615099,1741385441243,-284.74198157,0.00047099,14]
[355615100,1741385441252,-1121.04665501,0.00047154,120]
[355615101,1741385441261,-8216.33821492,0.00047155,7]
[355615102,1741385441327,-4304.98178508,0.00047155,7]
[355615103,1741385441337,-12521.32,0.00047429,7]
[355615104,1741385441346,-12521.32,0.00047703,7]
[355615105,1741385441356,-3000.0,0.0004789,2]
[355615106,1741385441366,-396.0,0.00047923,2]
[355615107,1741385441375,-12521.32,0.00047976,7]
[355615108,1741385441384,-1000.0,0.00048089,120]
[355615109,1741385441399,-1000.0,0.00048089,120]
[355615110,1741385441409,-1000.0,0.00048089,120]
[355615111,1741385441418,-1000.0,0.00048089,120]
[355615112,1741385441428,-1000.0,0.00048089,120]
[355615113,1741385441437,-1000.0,0.00048089,120]
[355615114,1741385441446,-1000.0,0.00048089,120]
[355615115,1741385441455,-1000.0,0.00048089,120]
[355615116,1741385441465,-1000.0,0.00048089,120]
[355615117,1741385441474,-1025.2800378,0.00048089,120]
[355615118,1741385441483,-500.0,0.00048189,120]
[355615119,1741385441494,-12521.32,0.0004825,7]
[355615120,1741385441503,-1230.9796918,0.00048411,4]
[355615121,1741385441512,-390.44299273,0.00048463,120]
[355615122,1741385441522,-12521.32,0.00048524,7]
[355615123,1741385441531,-151.0,0.00048798,120]
[355615124,1741385441541,-12521.32,0.00048798,7]
[355615125,1741385441550,-300.0,0.00049,3]
[355615126,1741385441559,-3470.69139433,0.00049,120]
[355615127,1741385441569,-151.0,0.00049072,120]
[355615128,1741385441579,-12521.32,0.00049072,7]
[355615129,1741385441588,-2500.0,0.00049315,120]
[355615130,1741385441598,-2500.0,0.00049315,120]
[355615131,1741385441608,-2500.0,0.00049315,120]
[355615132,1741385441617,-2500.0,0.00049315,120]
[355615133,1741385441626,-2500.0,0.00049315,120]
[355615134,1741385441636,-2500.0,0.00049315,120]
[355615135,1741385441648,-2500.0,0.00049315,120]
[355615136,1741385441658,-2500.0,0.00049315,120]
[355615137,1741385441667,-2500.0,0.00049315,120]
[355615138,1741385441677,-2500.0,0.00049315,120]
[355615139,1741385441687,-2500.0,0.00049315,120]
[355615140,1741385441697,-2500.0,0.00049315,120]
[355615141,1741385441707,-2500.0,0.00049315,120]
[355615142,1741385441717,-151.0,0.00049346,120]
[355615143,1741385441726,-12521.32,0.00049346,7]
[355615144,1741385441736,-2500.0,0.00049346,120]
[355615145,1741385441747,-8594.86031748,0.00049395,2]
[355615146,1741385441758,-1000.0,0.000494,60]
[355615147,1741385441769,-151.0,0.0004947,2]
[355615148,1741385441779,-500.0,0.0004947,2]
[355615149,1741385441789,-518.5,0.0004947,2]
[355615150,1741385441801,-537.6845,0.0004947,2]
[355615151,1741385441810,-557.5788265,0.0004947,2]
[355615152,1741385441820,-578.20924308,0.0004947,2]
[355615153,1741385441830,-599.60298507,0.0004947,2]
[355615154,1741385441840,-1073.36849535,0.0004947,2]
[355615155,1741385441850,-500.0,0.00049473,10]
[355615156,1741385441859,-500.0,0.00049473,10]
[355615157,1741385441869,-500.0,0.00049473,10]
[355615158,1741385441880,-500.0,0.00049473,10]
[355615159,1741385441894,-500.0,0.00049473,10]
[355615160,1741385441903,-604.25628213,0.00049473,10]
[355615161,1741385441913,-309.357643,0.00049473,10]
[355615162,1741385441923,-500.0,0.00049473,10]
[355615163,1741385441933,-500.0,0.00049473,10]
[355615164,1741385441943,-500.0,0.00049473,10]
[355615165,1741385441952,-500.0,0.00049473,10]
[355615166,1741385441962,-16750.05527699,0.00049495,40]
[355615167,1741385441971,-2823.76636715,0.00049495,40]
[355615168,1741385441981,-42812.12593374,0.00049495,20]
[355615169,1741385441994,-17261.97618871,0.00049495,20]
[355615170,1741385442006,-523273.17060556,0.00049495,20]
[355615171,1741385442016,-3727.7338303,0.00049495,7]
[355615172,1741385442025,-1073.96221965,0.00049495,2]
[355615173,1741385442035,-150.0,0.00049495,120]
[355615174,1741385442044,-1683.8283288,0.00049495,120]
[355615175,1741385442054,-251.25,0.00049495,30]
[355615176,1741385442063,-335.75,0.00049495,30]
[355615177,1741385442073,-226.6247845,0.00049495,120]
[355615178,1741385442083,-150.0,0.00049495,90]
[355615179,1741385442092,-1005.0,0.00049495,30]
[355615180,1741385442102,-1463.75029104,0.00049495,120]
[355615181,1741385442111,-2198.00349716,0.00049495,32]
[355615182,1741385442121,-1962.47545797,0.00049495,120]
[355615183,1741385442130,-901.50083975,0.00049495,120]
[355615184,1741385442142,-2052.67132673,0.00049495,30]
[355615185,1741385442152,-208.43933658,0.00049495,120]
[355615186,1741385442161,-1865.18107503,0.00049495,120]
[355615187,1741385442170,-677.49893109,0.00049495,120]
[355615188,1741385442180,-1504.2715716,0.00049495,60]
[355615189,1741385442195,-240.82074905,0.00049495,120]
[355615190,1741385442205,-1174.35952655,0.00049495,120]
[355615191,1741385442215,-1969.16106737,0.00049495,120]
[355615192,1741385442224,-932.51290679,0.00049495,120]
[355615193,1741385442234,-2000.0,0.00049495,120]
[355615194,1741385442243,-1080.72556947,0.00049495,120]
[355615195,1741385442252,-1962.22777425,0.00049495,30]
[355615196,1741385442261,-935.04215629,0.00049495,120]
[355615197,1741385442270,-851.42521225,0.00049495,120]
[355615198,1741385442280,-1589.53877027,0.00049495,120]
[355615199,1741385442289,-1036.410973,0.00049495,120]
[355615200,1741385442299,-2538.29293205,0.00049495,120]
[355615201,1741385442308,-991.66925184,0.00049495,120]
[355615202,1741385442318,-439.2385515,0.00049495,120]
[355615203,1741385442327,-2709.0820143,0.00049495,120]
[355615204,1741385442336,-1729.70592566,0.00049495,120]
[355615205,1741385442345,-685.83241554,0.00049495,120]
[355615206,1741385442355,-576.8061555,0.00049495,120]
[355615207,1741385442364,-419.85628534,0.00049495,120]
[355615208,1741385442374,-212.51505363,0.00049495,120]
[355615209,1741385442383,-311.99025448,0.00049495,120]
[355615210,1741385442398,-200.55334599,0.00049495,120]
[355615211,1741385442407,-2000.0,0.00049495,60]
[355615212,1741385442417,-823.01614619,0.00049495,120]
[355615213,1741385442426,-2076.77001773,0.00049495,120]
[355615214,1741385442436,-5000.0,0.00049495,120]
[355615215,1741385442446,-2885.55703796,0.00049495,35]
[355615216,1741385442456,-76659.7753636,0.00049495,120]
[355615217,1741385442466,-10000.0,0.00049495,30]
[355615218,1741385442476,-113652.89793571,0.00049495,7]
[355615219,1741385442487,-534477.543,0.00049495,7]
[355615220,1741385442497,-20056.39741619,0.00049495,120]
[355615221,1741385442508,-2000.0,0.00049495,120]
[355615222,1741385442518,-242.7269368,0.00049495,120]
[355615223,1741385442527,-123030.0,0.00049495,120]
[355615225,1741385442536,-150.0,0.00049495,120]
[355615226,1741385442546,-151.34954187,0.00049495,2]
[355615227,1741385442556,-9350.44029872,0.00049495,2]
[355615228,1741385442566,-30000.0,0.00049495,30]
[355615229,1741385442575,-206.49702054,0.00049495,2]
[355615230,1741385442585,-3197.75858003,0.00049495,30]
[355615231,1741385442594,-200.0,0.00049495,40]
[355615232,1741385442603,-200.0,0.00049495,40]
[355615233,1741385442613,-200.0,0.00049495,40]
[355615234,1741385442623,-200.0,0.00049495,40]
[355615236,1741385442632,-200.0,0.00049495,40]
[355615237,1741385442644,-200.0,0.00049495,40]
[355615238,1741385442653,-200.0,0.00049495,40]
[355615239,1741385442663,-200.0,0.00049495,40]
[355615240,1741385442673,-200.0,0.00049495,40]
[355615241,1741385442683,-200.0,0.00049495,40]
[355615242,1741385442693,-200.0,0.00049495,40]
[355615243,1741385442703,-200.0,0.00049495,40]
[355615244,1741385442712,-200.0,0.00049495,40]
[355615245,1741385442721,-200.0,0.00049495,40]
[355615246,1741385442731,-210.0,0.00049495,40]
[355615247,1741385442741,-1103.01879321,0.00049495,2]
[355615248,1741385442752,-20919.47693122,0.00049495,120]
[355615249,1741385442763,-1867.0,0.00049495,120]
[355615250,1741385442774,-1001.0,0.00049495,120]
[355615251,1741385442785,-67967.952476,0.00049495,30]
[355615252,1741385442796,-818.79513152,0.00049495,35]
[355615254,1741385442807,-14497.0,0.00049495,120]
[355615256,1741385442819,-1899.999999,0.00049495,90]
[355615258,1741385442831,-300.0,0.00049495,2]
[355615260,1741385442842,-1259.0,0.00049495,66]
[355615262,1741385442852,-1019.0,0.00049495,120]
[355615264,1741385442864,-13163.15236908,0.00049495,30]
[355615266,1741385442875,-118759.0726177,0.00049495,20]
[355615268,1741385442887,-235.07658661,0.00049495,10]
[355615270,1741385442908,-200.0,0.00049495,10]
[355615271,1741385442921,-2570.81537536,0.00049495,2]
[355615273,1741385442932,-1982.48888107,0.00049495,2]
[355615274,1741385442942,-4998.61,0.00049495,90]
[355615275,1741385442954,-150.0,0.00049495,30]